fUST/lending_fUST_20240828
["ID","MTS","AMOUNT","RATE_DAILY","PERIOD"]
[336337668,1724778712724,-552.41,0.0001726,2]
[336337669,1724778712733,-563.6016689,0.0001726,2]
[336337670,1724778712742,-669.26,0.0001726,2]
[336337671,1724778712751,-465.0,0.00017395,2]
[336337672,1724778712760,-1000.0,0.00017416,2]
[336337673,1724778712771,-1000.0,0.00017461,2]
[336337674,1724778712780,-1000.0,0.0001749,2]
[336337675,1724778712790,-1000.0,0.00017503,2]
[336337676,1724778712799,-1000.0,0.00017526,2]
[336337677,1724778712808,-1000.0,0.00017529,2]
[336337678,1724778712818,-554.65,0.00017533,2]
[336337679,1724778712827,-1416.19,0.00017533,2]
[336337680,1724778712837,-500.0,0.00017533,2]
[336337681,1724778712846,-1498.44,0.00017533,2]
[336337682,1724778712855,-150.0,0.00017546,2]
[336337683,1724778712865,-150.0,0.00017546,2]
[336337684,1724778712874,-1000.0,0.00017546,2]
[336337685,1724778712883,-1000.0,0.00017573,2]
[336337686,1724778712893,-351.68382194,0.00017583,2]
[336337687,1724778712903,-1000.0,0.00017583,2]
[336337688,1724778712912,-869.298371,0.00017592,2]
[336337689,1724778712924,-1000.0,0.00017597,2]
[336337690,1724778712934,-1992.81655385,0.000176,2]
[336337691,1724778712945,-1000.0,0.00017621,2]
[336337692,1724778712956,-1000.0,0.00017621,2]
[336337693,1724778712967,-150.0,0.00017628,2]
[336337694,1724778712977,-150.0,0.00017628,2]
[336337695,1724778712987,-522.0,0.00017628,2]
[336337696,1724778712997,-1093.32,0.000177,31]
[336337697,1724778713008,-1093.32,0.000177,31]
[336337698,1724778713018,-1093.32,0.000177,31]
[336337699,1724778713028,-1093.32,0.000177,31]
[336337700,1724778713037,-1093.32,0.000177,31]
[336337701,1724778713046,-1093.32,0.000177,31]
[336337702,1724778713057,-1093.32,0.000177,31]
[336337703,1724778713066,-1093.32,0.000177,31]
[336337704,1724778713076,-1093.32,0.000177,31]
[336337705,1724778713086,-1093.32,0.000177,31]
[336337706,1724778713095,-1093.32,0.000177,31]
[336337707,1724778713105,-1093.32,0.000177,31]
[336337708,1724778713114,-1093.32,0.000177,31]
[336337709,1724778713124,-1093.32,0.000177,31]
[336337710,1724778713134,-1093.32,0.000177,31]
[336337711,1724778713143,-1093.32,0.000177,31]
[336337712,1724778713153,-1093.32,0.000177,31]
[336337713,1724778713162,-1093.32,0.000177,31]
[336337714,1724778713172,-1093.32,0.000177,31]
[336337715,1724778713182,-1093.32,0.000177,31]
[336337716,1724778713191,-1093.32,0.000177,31]
[336337717,1724778713201,-1093.32,0.000177,31]
[336337718,1724778713210,-1093.32,0.000177,31]
[336337719,1724778713221,-1093.32,0.000177,31]
[336337720,1724778713231,-153.0,0.00017717,2]
[336337721,1724778713241,-153.0,0.00017717,2]
[336337722,1724778713250,-153.0,0.00017717,2]
[336337723,1724778713260,-153.0,0.00017717,2]
[336337724,1724778713269,-153.0,0.00017717,2]
[336337725,1724778713278,-153.0,0.00017717,2]
[336337726,1724778713289,-153.0,0.00017717,2]
[336337727,1724778713299,-409.3878908,0.0001777,2]
[336337728,1724778713308,-818.6719024,0.0001777,2]
[336337729,1724778713318,-554.83,0.00017807,2]
[336337730,1724778713328,-1416.35792787,0.00017807,2]
[336337731,1724778713338,-157.39436718,0.00017807,2]
[336337732,1724778713348,-1498.64523573,0.00017807,2]
[336337733,1724778713360,-19861.86093585,0.00017898,2]
[336337734,1724778713372,-6556.07404654,0.000179,2]
[336337735,1724778713382,-7106.93263158,0.000179,2]
[336337736,1724778713392,-722.55486815,0.00017904,2]
[336337737,1724778713405,-155.0,0.0001799,2]
[336337738,1724778713419,-200.0,0.00018,7]
[336337739,1724778713428,-183.75,0.00018,2]
[336337740,1724778713437,-154.9389401,0.00018,2]
[336337741,1724778713447,-992.49841504,0.00018,2]
[336337742,1724778713456,-1500.17982181,0.00018,2]
[336337743,1724778713466,-1046.61105431,0.00018,2]
[336337744,1724778713476,-206.0946228,0.00018,2]
[336337745,1724778713486,-465.0,0.00018264,2]
[336337746,1724778713496,-500.0,0.00018442,2]
[336337747,1724778713506,-15969.59292272,0.00018447,2]
[336337748,1724778713518,-1400.0,0.00018449,2]
[336337749,1724778713529,-153.0,0.00018539,2]
[336337750,1724778713539,-153.0,0.00018539,2]
[336337751,1724778713549,-153.0,0.00018539,2]
[336337752,1724778713558,-3500.0,0.00018605,2]
[336337753,1724778713568,-151.0,0.0001863,2]
[336337754,1724778713590,-151.0,0.0001863,2]
[336337755,1724778713601,-153.0,0.00018638,2]
[336337756,1724778713611,-153.0,0.00018646,2]
[336337757,1724778713620,-153.0,0.00018653,2]
[336337758,1724778713630,-153.0,0.00018654,2]
[336337759,1724778713639,-1840.0,0.0001866,7]
[336337760,1724778713650,-153.0,0.0001866,2]
[336337761,1724778713661,-477.87774341,0.000188,2]
[336337762,1724778713671,-4200.0,0.00018835,2]
[336337763,1724778713681,-155.0,0.0001885,2]
[336337764,1724778713691,-151.0,0.00018904,2]
[336337765,1724778713700,-151.0,0.00018904,2]
[336337766,1724778713709,-151.0,0.00018904,2]
[336337767,1724778713718,-5000.0,0.00018904,2]
[336337768,1724778713727,-5000.0,0.00018904,2]
[336337769,1724778713736,-5000.0,0.00018904,2]
[336337770,1724778713745,-3326.03921131,0.00018904,2]
[336337771,1724778713754,-3972.02692,0.00019,2]
[336337772,1724778713763,-177.51331421,0.00019,2]
[336337773,1724778713773,-2204.53338594,0.00019,2]
[336337774,1724778713783,-10000.0,0.00019,2]
[336337775,1724778713792,-8508.44315388,0.00019,2]
[336337776,1724778714276,-500.0,0.00010958,2]
[336337777,1724778714287,-500.0,0.00010958,2]
[336337778,1724778714297,-457.93345033,0.00010958,2]
[336337779,1724778714311,-500.0,0.00010958,2]
[336337780,1724778714322,-232.73,0.00011232,2]
[336337781,1724778714332,-222.68427983,0.00013971,2]
[336337782,1724778714341,-500.0,0.00014246,2]
[336337783,1724778714351,-500.0,0.0001452,2]
[336337784,1724778714363,-500.0,0.00014794,2]
[336337785,1724778714374,-1261.58370856,0.000149,2]
[336337786,1724778714384,-1354.84,0.00015067,2]
[336337787,1724778714395,-500.0,0.00015068,2]
[336337788,1724778714409,-221.25062454,0.00015341,2]
[336337789,1724778714849,-1151.79937546,0.00015341,2]
[336337790,1724778714859,-1354.84,0.00015341,2]
[336337791,1724778714868,-155.24444629,0.00015342,2]
[336337792,1724778714877,-627.44,0.00015342,2]
[336337793,1724778714887,-1373.05,0.00015615,2]
[336337794,1724778714896,-1354.84,0.00015615,2]
[336337795,1724778714906,-1373.05,0.00015889,2]
[336337796,1724778714915,-1354.84,0.00015889,2]
[336337797,1724778714925,-1373.05,0.00016163,2]
[336337798,1724778714934,-1354.84,0.00016163,2]
[336337799,1724778714944,-1373.05,0.00016437,2]
[336337800,1724778714955,-1354.84,0.00016437,2]
[336337801,1724778714964,-1373.05,0.00016711,2]
[336337802,1724778714973,-1354.84,0.00016711,2]
[336337803,1724778714984,-1373.05,0.00016985,2]
[336337804,1724778715004,-1354.84,0.00016985,2]
[336337805,1724778715016,-1373.05,0.00017259,2]
[336337806,1724778715026,-1373.05,0.00017533,2]
[336337807,1724778715036,-153.0,0.00018631,2]
[336337808,1724778715047,-1491.55684612,0.00019,2]
[336337809,1724778715059,-10000.0,0.00019,2]
[336337810,1724778715073,-10000.0,0.00019,2]
[336337811,1724778715083,-14875.48803093,0.00019,2]
[336337812,1724778715094,-939.89742184,0.00019,2]
[336337813,1724778715105,-330.18422,0.00019,2]
[336337814,1724778715117,-330.18422,0.00019,2]
[336337815,1724778715130,-328.092211,0.00019,2]
[336337816,1724778715140,-328.092211,0.00019,2]
[336337817,1724778715150,-487.660934,0.00019,2]
[336337818,1724778715161,-487.660934,0.00019,2]
[336337819,1724778715171,-924.852967,0.00019,2]
[336337820,1724778715182,-213.462844,0.00019,2]
[336337821,1724778715191,-924.852967,0.00019,2]
[336337822,1724778715201,-213.462844,0.00019,2]
[336337823,1724778715211,-276.303727,0.00019,2]
[336337824,1724778715223,-276.303727,0.00019,2]
[336337825,1724778715234,-7023.43372794,0.00019017,30]
[336337826,1724778715286,-153.0,0.00015308,2]
[336337827,1724778715296,-1373.13927904,0.00017807,2]
[336337828,1724778715307,-27494.94118544,0.00019017,30]
[336337829,1724778715319,-1400.0,0.00019032,2]
[336337830,1724778715330,-1400.0,0.00019072,2]
[336337831,1724778715340,-186.6788765,0.000191,12]
[336337832,1724778715351,-465.0,0.00019178,2]
[336337833,1724778715362,-600.0,0.00019178,2]
[336337834,1724778715372,-592.89031506,0.00019178,2]
[336337835,1724778715382,-151.0,0.00019178,2]
[336337836,1724778715393,-151.0,0.00019178,2]
[336337837,1724778715404,-164.066521,0.00019178,2]
[336337838,1724778715417,-251.0,0.00019178,2]
[336337839,1724778715426,-292.579579,0.00019178,2]
[336337840,1724778715437,-443.1361751,0.00019178,4]
[336337841,1724778715447,-377.83536293,0.0001918,2]
[336337842,1724778715457,-377.83536293,0.0001918,2]
[336337843,1724778715467,-377.83536293,0.0001918,2]
[336337844,1724778715477,-377.83536293,0.0001918,2]
[336337845,1724778715486,-377.83536293,0.0001918,2]
[336337846,1724778715496,-377.83536293,0.0001918,2]
[336337847,1724778715506,-377.83536293,0.0001918,2]
[336337848,1724778715517,-377.83536293,0.0001918,2]
[336337849,1724778715528,-377.83536293,0.0001918,2]
[336337850,1724778715537,-377.83536293,0.0001918,2]
[336337851,1724778715547,-377.83536293,0.0001918,2]
[336337852,1724778715558,-377.83536293,0.0001918,2]
[336337853,1724778715568,-377.83536293,0.0001918,2]
[336337854,1724778715578,-377.83536293,0.0001918,2]
[336337855,1724778715589,-377.83536293,0.0001918,2]
[336337856,1724778715599,-377.83536293,0.0001918,2]
[336337857,1724778715613,-377.83536293,0.0001918,2]
[336337858,1724778715623,-377.83536293,0.0001918,2]
[336337859,1724778715633,-377.83536293,0.0001918,2]
[336337860,1724778715655,-378.33,0.0001918,2]
[336337861,1724778715665,-1511.41645171,0.0001918,2]
[336337862,1724778715675,-1511.41645171,0.0001918,2]
[336337863,1724778715684,-1511.41645171,0.0001918,2]
[336337864,1724778715694,-1511.41645171,0.0001918,2]
[336337865,1724778715704,-1511.41645171,0.0001918,2]
[336337866,1724778715714,-1511.41645171,0.0001918,2]
[336337867,1724778715724,-1511.41645171,0.0001918,2]
[336337868,1724778715733,-1511.41645171,0.0001918,2]
[336337869,1724778715743,-1511.41645171,0.0001918,2]
[336337870,1724778715752,-1511.41645171,0.0001918,2]
[336337871,1724778715762,-1511.41645171,0.0001918,2]
[336337872,1724778715773,-1511.41645171,0.0001918,2]
[336337873,1724778715784,-1511.41645171,0.0001918,2]
[336337874,1724778715794,-1511.41645171,0.0001918,2]
[336337875,1724778715804,-1511.41645171,0.0001918,2]
[336337876,1724778715814,-1511.41645171,0.0001918,2]
[336337877,1724778715826,-1511.41645171,0.0001918,2]
[336337878,1724778715835,-1511.41645171,0.0001918,2]
[336337879,1724778715845,-1511.41645171,0.0001918,2]
[336337880,1724778715856,-1511.91,0.0001918,2]
[336337881,1724778715865,-239.54529415,0.0001918,2]
[336337882,1724778715875,-239.54529415,0.0001918,2]
[336337883,1724778715886,-239.54529415,0.0001918,2]
[336337884,1724778715896,-239.54529415,0.0001918,2]
[336337885,1724778715906,-239.54529415,0.0001918,2]
[336337886,1724778715915,-239.54529415,0.0001918,2]
[336337887,1724778715925,-239.54529415,0.0001918,2]
[336337888,1724778715935,-239.54529415,0.0001918,2]
[336337889,1724778715945,-239.54529415,0.0001918,2]
[336337890,1724778715954,-239.54529415,0.0001918,2]
[336337891,1724778715964,-239.54529415,0.0001918,2]
[336337892,1724778715975,-239.54529415,0.0001918,2]
[336337893,1724778715985,-239.54529415,0.0001918,2]
[336337894,1724778715995,-239.54529415,0.0001918,2]
[336337895,1724778716004,-239.54529415,0.0001918,2]
[336337896,1724778716014,-239.54529415,0.0001918,2]
[336337897,1724778716024,-239.54529415,0.0001918,2]
[336337898,1724778716035,-239.54529415,0.0001918,2]
[336337899,1724778716046,-239.54529415,0.0001918,2]
[336337900,1724778716055,-240.04,0.0001918,2]
[336337901,1724778716068,-958.2561766,0.0001918,2]
[336337902,1724778716083,-958.2561766,0.0001918,2]
[336337903,1724778716093,-958.2561766,0.0001918,2]
[336337904,1724778716103,-958.2561766,0.0001918,2]
[336337905,1724778716113,-958.2561766,0.0001918,2]
[336337906,1724778716123,-958.2561766,0.0001918,2]
[336337907,1724778716133,-958.2561766,0.0001918,2]
[336337908,1724778716143,-958.2561766,0.0001918,2]
[336337909,1724778716153,-958.2561766,0.0001918,2]
[336337910,1724778716162,-958.2561766,0.0001918,2]
[336337911,1724778716172,-958.2561766,0.0001918,2]
[336337912,1724778716183,-958.2561766,0.0001918,2]
[336337913,1724778716194,-958.2561766,0.0001918,2]
[336337914,1724778716205,-958.2561766,0.0001918,2]
[336337915,1724778716216,-958.2561766,0.0001918,2]
[336337916,1724778716226,-958.2561766,0.0001918,2]
[336337917,1724778716236,-958.2561766,0.0001918,2]
[336337918,1724778716246,-958.2561766,0.0001918,2]
[336337919,1724778716256,-958.2561766,0.0001918,2]
[336337920,1724778716265,-958.75,0.0001918,2]
[336337921,1724778716275,-500.0,0.00019194,2]
[336337922,1724778716285,-2928.27,0.000192,2]
[336337923,1724778716295,-2126.69,0.000192,2]
[336337924,1724778716464,-4776.57,0.000192,2]
[336337925,1724778716476,-500.0,0.00019251,2]
[336337926,1724778716486,-500.0,0.00019268,2]
[336337927,1724778716498,-500.0,0.00019337,2]
[336337928,1724778716507,-4200.0,0.0001936,2]
[336337929,1724778716516,-4200.0,0.00019362,2]
[336337930,1724778716526,-4200.0,0.00019411,2]
[336337931,1724778716536,-151.0,0.00019452,2]
[336337932,1724778716546,-151.0,0.00019452,2]
[336337933,1724778716555,-153.0,0.00019463,2]
[336337934,1724778716564,-4200.0,0.00019469,2]
[336337935,1724778716576,-937.15731795,0.00019484,2]
[336337936,1724778716587,-214.0,0.000195,10]
[336337937,1724778716598,-2205.09583852,0.00019569,2]
[336337938,1724778716608,-1400.0,0.00019602,2]
[336337939,1724778716618,-153.0,0.00019616,2]
[336337940,1724778716628,-818.7757817,0.00019616,2]
[336337941,1724778716638,-153.0,0.00019616,2]
[336337942,1724778716649,-4200.0,0.00019618,2]
[336337943,1724778716660,-500.0,0.00019697,2]
[336337944,1724778716671,-277.0,0.0001971,2]
[336337945,1724778716681,-500.0,0.00019719,2]
[336337946,1724778716691,-465.64388717,0.0001974,2]
[336337947,1724778716700,-2800.0,0.0001975,2]
[336337948,1724778716710,-1400.0,0.00019824,2]
[336337949,1724778716719,-500.0,0.00019836,2]
[336337950,1724778716731,-1400.0,0.00019879,2]
[336337951,1724778716741,-500.0,0.00019906,2]
[336337952,1724778716750,-294533.0,0.0001999,2]
[336337953,1724778716760,-330.18422,0.0001999,2]
[336337954,1724778716769,-330.18422,0.0001999,2]
[336337955,1724778716779,-328.092211,0.0001999,2]
[336337956,1724778716788,-328.092211,0.0001999,2]
[336337957,1724778716797,-487.660934,0.0001999,2]
[336337958,1724778716806,-487.660927,0.0001999,2]
[336337959,1724778716815,-924.852967,0.0001999,2]
[336337960,1724778716825,-213.462844,0.0001999,2]
[336337961,1724778716834,-924.852973,0.0001999,2]
[336337962,1724778716843,-213.462836,0.0001999,2]
[336337963,1724778716852,-276.303727,0.0001999,2]
[336337964,1724778716861,-276.303725,0.0001999,2]
[336337965,1724778716870,-21109.74442509,0.0002,2]
[336337966,1724778716879,-360.94608014,0.0002,2]
[336337967,1724778716888,-2904.98932673,0.0002,2]
[336337968,1724778716898,-520.9750359,0.0002,2]
[336337969,1724778716907,-20187.27090548,0.0002,2]
[336337970,1724778716916,-154.71377951,0.0002,2]
[336337971,1724778716925,-154.72922386,0.0002,2]
[336337972,1724778716934,-1237.43843935,0.0002,2]
[336337973,1724778716943,-285.6293915,0.0002,2]
[336337974,1724778716955,-1809.85871123,0.0002,7]
[336337975,1724778716964,-3446.29446176,0.0002,7]
[336337976,1724778716973,-200.0,0.0002,7]
[336337977,1724778716984,-223.4109782,0.0002,2]
[336337978,1724778716993,-150.0,0.0002,4]
[336337979,1724778717003,-400.26987358,0.0002,2]
[336337980,1724778717012,-183.75,0.0002,2]
[336337981,1724778717021,-159.33926432,0.0002,2]
[336337982,1724778717030,-12900.0,0.0002,2]
[336337983,1724778717039,-500.0,0.0002,2]
[336337984,1724778717049,-506.0,0.0002,2]
[336337985,1724778717058,-506.0,0.0002,2]
[336337986,1724778717067,-42239.44980073,0.0002,2]
[336337987,1724778717089,-10989.49163801,0.0002,2]
[336337988,1724778717099,-10061.76238412,0.0002,2]
[336337989,1724778717107,-4294.39918318,0.0002,2]
[336337990,1724778717118,-623.84129191,0.0002,2]
[336337991,1724778717128,-154.74467129,0.0002,2]
[336337992,1724778717139,-174.78202685,0.0002,2]
[336337993,1724778717148,-6441.49346532,0.0002,2]
[336337994,1724778717158,-621.91732897,0.0002,15]
[336337995,1724778717168,-980.9954788,0.0002,10]
[336337996,1724778717177,-26742.5576555,0.0002,2]
[336337997,1724778719084,-500.0,0.00010958,2]
[336337998,1724778719093,-500.0,0.00010958,2]
[336337999,1724778719102,-500.0,0.00011232,2]
[336338000,1724778719111,-544.78559121,0.00011232,2]
[336338001,1724778719121,-500.0,0.00011505,2]
[336338002,1724778719130,-500.0,0.00011505,2]
[336338003,1724778719139,-500.0,0.00011506,2]
[336338004,1724778719149,-500.0,0.00011779,2]
[336338005,1724778719158,-500.0,0.00011779,2]
[336338006,1724778719167,-156.09,0.0001178,2]
[336338007,1724778719177,-500.0,0.00012053,2]
[336338008,1724778719187,-500.0,0.00012327,2]
[336338009,1724778719197,-500.0,0.00012601,2]
[336338010,1724778719206,-500.0,0.00012875,2]
[336338011,1724778719218,-500.0,0.00013149,2]
[336338012,1724778719228,-500.0,0.00013423,2]
[336338013,1724778719239,-1354.84,0.00017259,2]
[336338014,1724778719248,-1354.84,0.00017533,2]
[336338015,1724778719258,-1354.85755997,0.00017807,2]
[336338016,1724778719269,-2705.64611582,0.0002,2]
[336338017,1724778719299,-500.0,0.00013697,2]
[336338018,1724778719308,-1518.85315,0.0002,2]
[336338019,1724778724674,-36411.795885,0.0002,2]
[336338020,1724778738766,-608.35,0.00010958,2]
[336338021,1724778738794,-500.81,0.00010958,2]
[336338022,1724778738819,-502.95813128,0.00010958,2]
[336338023,1724778738851,-500.0,0.00010958,2]
[336338024,1724778738875,-500.61189559,0.00010958,2]
[336338025,1724778738899,-500.0,0.00010958,2]
[336338026,1724778738924,-500.0,0.00010958,2]
[336338027,1724778738948,-500.0,0.00010958,2]
[336338028,1724778738972,-569.98,0.00010958,2]
[336338029,1724778738997,-500.0,0.00010958,2]
[336338030,1724778739022,-500.0,0.00010958,2]
[336338031,1724778739048,-500.0,0.00010958,2]
[336338032,1724778739072,-508.24349166,0.00010958,2]
[336338033,1724778739098,-500.0,0.00010958,2]
[336338034,1724778739122,-500.0,0.00010958,2]
[336338035,1724778739146,-500.0,0.00010958,2]
[336338036,1724778739169,-500.0,0.00010958,2]
[336338037,1724778739193,-500.0,0.00010958,2]
[336338038,1724778739216,-500.0,0.00010958,2]
[336338039,1724778739241,-250.0,0.00010958,2]
[336338040,1724778739265,-500.0,0.00010958,2]
[336338041,1724778739293,-500.0,0.00010958,2]
[336338042,1724778739317,-500.0,0.00010958,2]
[336338043,1724778739341,-500.0,0.00010958,2]
[336338044,1724778739365,-500.0,0.00010958,2]
[336338045,1724778739394,-507.37831427,0.00010958,2]
[336338046,1724778739423,-500.0,0.00010958,2]
[336338047,1724778739448,-500.0,0.00010958,2]
[336338048,1724778739472,-500.0,0.00010958,2]
[336338049,1724778739707,-500.0,0.00010958,2]
[336338050,1724778739732,-500.0,0.00010958,2]
[336338051,1724778739758,-500.0,0.00010958,2]
[336338052,1724778739782,-500.0,0.00010958,2]
[336338053,1724778739807,-500.0,0.00010958,2]
[336338054,1724778739831,-500.0,0.00010958,2]
[336338055,1724778739857,-500.0,0.00010958,2]
[336338056,1724778739881,-602.40812925,0.00010958,2]
[336338057,1724778739906,-500.0,0.00010958,2]
[336338058,1724778739928,-507.48470901,0.00010958,2]
[336338059,1724778739952,-502.67482056,0.00010958,2]
[336338060,1724778739975,-500.0,0.00010958,2]
[336338061,1724778739998,-500.0,0.00010958,2]
[336338062,1724778740023,-500.0,0.00010958,2]
[336338063,1724778740047,-500.0,0.00010958,2]
[336338064,1724778740073,-500.0,0.00010958,2]
[336338065,1724778740249,-500.0,0.00010958,2]
[336338066,1724778740272,-507.26077474,0.00010958,2]
[336338067,1724778740296,-500.0,0.00010958,2]
[336338068,1724778740318,-500.0,0.00010958,2]
[336338069,1724778740343,-548.69,0.00010958,2]
[336338070,1724778740365,-500.0,0.00010958,2]
[336338071,1724778740387,-500.0,0.00010958,2]
[336338072,1724778740411,-500.0,0.00010958,2]
[336338073,1724778740439,-500.0,0.00010958,2]
[336338074,1724778740462,-640.12,0.00010958,2]
[336338075,1724778740486,-500.0,0.00010958,2]
[336338076,1724778740513,-500.0,0.00010958,2]
[336338077,1724778740537,-500.0,0.00010958,2]
[336338078,1724778740561,-501.66877074,0.00010958,2]
[336338079,1724778740587,-500.0,0.00010958,2]
[336338080,1724778740610,-500.0,0.00010958,2]
[336338081,1724778740633,-500.0,0.00010958,2]
[336338082,1724778740656,-500.0,0.00010958,2]
[336338083,1724778740680,-500.0,0.00010958,2]
[336338084,1724778740704,-500.0,0.00010958,2]
[336338085,1724778740728,-500.0,0.00010958,2]
[336338086,1724778740751,-500.0,0.00010958,2]
[336338087,1724778740775,-500.0,0.00010958,2]
[336338088,1724778740803,-500.0,0.00010958,2]
[336338089,1724778740827,-500.0,0.00010958,2]
[336338090,1724778740851,-500.0,0.00010958,2]
[336338091,1724778740874,-500.0,0.00010958,2]
[336338092,1724778740897,-500.0,0.00010958,2]
[336338093,1724778740922,-500.0,0.00010958,2]
[336338094,1724778740947,-645.21164565,0.00010958,2]
[336338095,1724778740971,-500.0,0.00010958,2]
[336338096,1724778740996,-500.0,0.00010958,2]
[336338097,1724778741020,-500.0,0.00010958,2]
[336338098,1724778741043,-500.0,0.00010958,2]
[336338099,1724778741066,-500.0,0.00010958,2]
[336338100,1724778741091,-500.0,0.00010958,2]
[336338101,1724778741114,-500.0,0.00010958,2]
[336338102,1724778741139,-500.0,0.00011,2]
[336338103,1724778741163,-500.0,0.00011,2]
[336338104,1724778741187,-500.0,0.00011,2]
[336338105,1724778741210,-500.0,0.00011,2]
[336338106,1724778741234,-500.0,0.00011,2]
[336338107,1724778741257,-500.0,0.00011,2]
[336338108,1724778741280,-500.0,0.00011,2]
[336338109,1724778741303,-500.0,0.00011,2]
[336338110,1724778741327,-500.0,0.00011,2]
[336338111,1724778741351,-500.0,0.00011,2]
[336338112,1724778741374,-500.0,0.00011,2]
[336338113,1724778741397,-500.0,0.00011,2]
[336338114,1724778741422,-500.0,0.00011,2]
[336338115,1724778741445,-500.0,0.00011,2]
[336338116,1724778741468,-500.0,0.00011,2]
[336338117,1724778741492,-500.0,0.00011,2]
[336338118,1724778741515,-500.0,0.00011,2]
[336338119,1724778741539,-500.0,0.00011,2]
[336338120,1724778741561,-500.0,0.00011,2]
[336338121,1724778741584,-500.0,0.00011,2]
[336338122,1724778741608,-500.0,0.00011,2]
[336338123,1724778741630,-500.0,0.00011,2]
[336338124,1724778741653,-500.0,0.00011,2]
[336338125,1724778741677,-500.0,0.00011,2]
[336338126,1724778741703,-575.41,0.00011,2]
[336338127,1724778741725,-470.29,0.00011,2]
[336338128,1724778741753,-608.35,0.00011232,2]
[336338129,1724778741779,-500.81,0.00011232,2]
[336338130,1724778741802,-500.0,0.00011232,2]
[336338131,1724778741825,-500.0,0.00011232,2]
[336338132,1724778741857,-500.0,0.00011232,2]
[336338133,1724778741880,-500.0,0.00011232,2]
[336338134,1724778741905,-500.0,0.00011232,2]
[336338135,1724778741929,-569.98,0.00011232,2]
[336338136,1724778741953,-500.0,0.00011232,2]
[336338137,1724778741977,-500.0,0.00011232,2]
[336338138,1724778742000,-500.0,0.00011232,2]
[336338139,1724778742022,-500.0,0.00011232,2]
[336338140,1724778742044,-500.0,0.00011232,2]
[336338141,1724778742067,-500.0,0.00011232,2]
[336338142,1724778742089,-500.0,0.00011232,2]
[336338143,1724778742115,-500.0,0.00011232,2]
[336338144,1724778742138,-250.0,0.00011232,2]
[336338145,1724778742160,-500.0,0.00011232,2]
[336338146,1724778742184,-500.0,0.00011232,2]
[336338147,1724778742207,-500.0,0.00011232,2]
[336338148,1724778742232,-500.0,0.00011232,2]
[336338149,1724778742255,-357.18470998,0.00011232,2]
[336338150,1724778742278,-500.0,0.00011232,2]
[336338151,1724778742300,-500.0,0.00011232,2]
[336338152,1724778742323,-500.0,0.00011232,2]
[336338153,1724778742347,-500.0,0.00011232,2]
[336338154,1724778742369,-500.0,0.00011232,2]
[336338155,1724778742392,-500.0,0.00011232,2]
[336338156,1724778742418,-500.0,0.00011232,2]
[336338157,1724778742440,-500.0,0.00011232,2]
[336338158,1724778742466,-500.0,0.00011232,2]
[336338159,1724778742491,-500.0,0.00011232,2]
[336338160,1724778742514,-500.0,0.00011232,2]
[336338161,1724778742536,-500.0,0.00011232,2]
[336338162,1724778742557,-500.0,0.00011232,2]
[336338163,1724778742579,-500.0,0.00011232,2]
[336338164,1724778742607,-500.0,0.00011232,2]
[336338165,1724778742629,-500.0,0.00011232,2]
[336338166,1724778742652,-500.0,0.00011232,2]
[336338167,1724778742674,-500.0,0.00011232,2]